[Event "Titled Tuesday Blitz November 08 Early 2022"]
[White "Salman, Pavel"]
[Black "Osmonbekov, Talaibek"]
[WhiteFideId "24153753"]
[BlackFideId "2017253"]
[WhiteElo "2187"]
[BlackElo "2135"]
[Result "1-0"]
[Round "04"]
[TimeControl "180+1"]
[Date "2022.11.09"]
[WhiteClock "0:00:18"]
[BlackClock "0:00:04"]

1. d4 {[%clk 0:03:00]}  e6 {[%clk 0:02:59]} 2. Nc3 {[%clk 0:02:59]}  c5 {[%clk 0:02:54]} 3. d5 {[%clk 0:02:58]}  exd5 {[%clk 0:02:51]} 4. Nxd5 {[%clk 0:02:57]}  d6 {[%clk 0:02:49]} 5. Nf3 {[%clk 0:02:56]}  Nc6 {[%clk 0:02:42]} 6. e4 {[%clk 0:02:54]}  Nf6 {[%clk 0:02:39]} 7. Bg5 {[%clk 0:02:53]}  Be7 {[%clk 0:02:40]} 8. Nxe7 {[%clk 0:02:52]}  Qxe7 {[%clk 0:02:40]} 9. Be2 {[%clk 0:02:43]}  h6 {[%clk 0:02:32]} 10. Bxf6 {[%clk 0:02:40]}  Qxf6 {[%clk 0:02:33]} 11. O-O {[%clk 0:02:38]}  O-O {[%clk 0:02:33]} 12. c3 {[%clk 0:02:38]}  Re8 {[%clk 0:02:27]} 13. Qc2 {[%clk 0:02:38]}  Bg4 {[%clk 0:02:23]} 14. h3 {[%clk 0:02:38]}  Bh5 {[%clk 0:02:21]} 15. Rad1 {[%clk 0:02:34]}  Rad8 {[%clk 0:02:21]} 16. Rfe1 {[%clk 0:02:33]}  Bg6 {[%clk 0:02:13]} 17. Bc4 {[%clk 0:02:21]}  a6 {[%clk 0:02:02]} 18. Rd2 {[%clk 0:02:20]}  Bh5 {[%clk 0:01:56]} 19. Be2 {[%clk 0:02:13]}  Bg6 {[%clk 0:01:54]} 20. Bc4 {[%clk 0:02:05]}  Bh5 {[%clk 0:01:53]} 21. Re3 {[%clk 0:02:00]}  b5 {[%clk 0:01:43]} 22. Bd5 {[%clk 0:02:00]}  Ne7 {[%clk 0:01:39]} 23. Bb7 {[%clk 0:01:53]}  Ng6 {[%clk 0:01:20]} 24. Bxa6 {[%clk 0:01:42]}  Nf4 {[%clk 0:01:12]} 25. Bxb5 {[%clk 0:01:36]}  Qg6 {[%clk 0:01:09]} 26. Nh4 {[%clk 0:01:30]}  Qg5 {[%clk 0:01:07]} 27. Bxe8 {[%clk 0:01:14]}  Qxh4 {[%clk 0:01:06]} 28. Bb5 {[%clk 0:01:10]}  Qg5 {[%clk 0:00:53]} 29. Bf1 {[%clk 0:01:01]}  Ra8 {[%clk 0:00:46]} 30. a4 {[%clk 0:00:59]}  Qf6 {[%clk 0:00:36]} 31. b4 {[%clk 0:00:46]}  cxb4 {[%clk 0:00:21]} 32. cxb4 {[%clk 0:00:47]}  Qa1 {[%clk 0:00:21]} 33. a5 {[%clk 0:00:43]}  g5 {[%clk 0:00:19]} 34. Rxd6 {[%clk 0:00:34]}  Bg6 {[%clk 0:00:13]} 35. a6 {[%clk 0:00:30]}  Rb8 {[%clk 0:00:10]} 36. b5 {[%clk 0:00:26]}  Qe5 {[%clk 0:00:03]} 37. Qc7 {[%clk 0:00:20]}  Rxb5 {[%clk 0:00:03]} 38. Rd8+ {[%clk 0:00:18]}  Kh7 {[%clk 0:00:03]} 39. Qxe5 {[%clk 0:00:18]}  Rxe5 {[%clk 0:00:04]} 40. a7 {[%clk 0:00:18]} 1-0


[Site "https://www.chess.com"]

[Event "Titled Tuesday Blitz November 08 Early 2022"]
[White "Samaganova, Aleksandra"]
[Black "Barria Santos, Jose Guilherme"]
[WhiteFideId "13800221"]
[BlackFideId "1939300"]
[WhiteElo "1864"]
[BlackElo "2273"]
[Result "0-1"]
[Round "04"]
[TimeControl "180+1"]
[Date "2022.11.09"]
[WhiteClock "0:02:17"]
[BlackClock "0:02:00"]

1. c4 {[%clk 0:03:00]}  Nf6 {[%clk 0:02:56]} 2. Nc3 {[%clk 0:02:59]}  c5 {[%clk 0:02:54]} 3. Nf3 {[%clk 0:02:59]}  g6 {[%clk 0:02:55]} 4. e3 {[%clk 0:02:58]}  Bg7 {[%clk 0:02:55]} 5. d4 {[%clk 0:02:56]}  cxd4 {[%clk 0:02:56]} 6. exd4 {[%clk 0:02:57]}  d5 {[%clk 0:02:57]} 7. cxd5 {[%clk 0:02:57]}  Nxd5 {[%clk 0:02:58]} 8. Bd3 {[%clk 0:02:57]}  O-O {[%clk 0:02:58]} 9. h3 {[%clk 0:02:57]}  Nc6 {[%clk 0:02:50]} 10. O-O {[%clk 0:02:56]}  Nxd4 {[%clk 0:02:40]} 11. Nxd4 {[%clk 0:02:53]}  Bxd4 {[%clk 0:02:41]} 12. Nxd5 {[%clk 0:02:50]}  Qxd5 {[%clk 0:02:35]} 13. Bh6 {[%clk 0:02:49]}  Bg7 {[%clk 0:02:34]} 14. Bxg7 {[%clk 0:02:48]}  Kxg7 {[%clk 0:02:34]} 15. Qe2 {[%clk 0:02:46]}  Qe6 {[%clk 0:02:30]} 16. Qf3 {[%clk 0:02:44]}  Qf6 {[%clk 0:02:30]} 17. Qe2 {[%clk 0:02:42]}  Be6 {[%clk 0:02:29]} 18. Be4 {[%clk 0:02:42]}  Rab8 {[%clk 0:02:26]} 19. Rfd1 {[%clk 0:02:41]}  b6 {[%clk 0:02:24]} 20. b3 {[%clk 0:02:40]}  Rfd8 {[%clk 0:02:20]} 21. Rac1 {[%clk 0:02:34]}  h5 {[%clk 0:02:17]} 22. Rc7 {[%clk 0:02:21]}  Rxd1+ {[%clk 0:01:59]} 23. Qxd1 {[%clk 0:02:17]}  Qe5 {[%clk 0:02:00]} 0-1


[Site "https://www.chess.com"]

[Event "Titled Tuesday Blitz November 08 Early 2022"]
[White "Sarkar, Justin"]
[Black "Gritsenko, Nikolai"]
[WhiteFideId "2010011"]
[BlackFideId "14112493"]
[WhiteElo "2239"]
[BlackElo "2389"]
[Result "1-0"]
[Round "04"]
[TimeControl "180+1"]
[Date "2022.11.09"]
[WhiteClock "0:00:01"]
[BlackClock "0:00:01"]

1. d4 {[%clk 0:02:50]}  d5 {[%clk 0:03:00]} 2. c4 {[%clk 0:02:48]}  Nc6 {[%clk 0:03:00]} 3. Nf3 {[%clk 0:02:36]}  Bg4 {[%clk 0:03:00]} 4. cxd5 {[%clk 0:02:34]}  Bxf3 {[%clk 0:03:00]} 5. dxc6 {[%clk 0:02:34]}  Bxc6 {[%clk 0:02:58]} 6. Nc3 {[%clk 0:02:34]}  e6 {[%clk 0:02:59]} 7. e4 {[%clk 0:02:29]}  Bb4 {[%clk 0:02:54]} 8. f3 {[%clk 0:02:20]}  Qh4+ {[%clk 0:02:53]} 9. g3 {[%clk 0:02:18]}  Qf6 {[%clk 0:02:52]} 10. Be3 {[%clk 0:02:08]}  O-O-O {[%clk 0:02:51]} 11. Qe2 {[%clk 0:01:39]}  Rxd4 {[%clk 0:02:42]} 12. Bxd4 {[%clk 0:01:40]}  Qxd4 {[%clk 0:02:41]} 13. Qd2 {[%clk 0:01:32]}  Qb6 {[%clk 0:02:23]} 14. O-O-O {[%clk 0:01:24]}  Ne7 {[%clk 0:02:20]} 15. Bc4 {[%clk 0:01:14]}  Bc5 {[%clk 0:01:58]} 16. Rhe1 {[%clk 0:01:10]}  h6 {[%clk 0:01:30]} 17. Kb1 {[%clk 0:01:05]}  a6 {[%clk 0:01:28]} 18. Bb3 {[%clk 0:01:03]}  Kb8 {[%clk 0:01:14]} 19. Ba4 {[%clk 0:00:55]}  Bb4 {[%clk 0:01:05]} 20. Bxc6 {[%clk 0:00:52]}  Nxc6 {[%clk 0:01:05]} 21. Rc1 {[%clk 0:00:24]}  Rd8 {[%clk 0:00:57]} 22. Qe3 {[%clk 0:00:22]}  Nd4 {[%clk 0:00:45]} 23. Red1 {[%clk 0:00:17]}  Bxc3 {[%clk 0:00:35]} 24. Rxc3 {[%clk 0:00:14]}  e5 {[%clk 0:00:34]} 25. f4 {[%clk 0:00:11]}  f6 {[%clk 0:00:34]} 26. fxe5 {[%clk 0:00:10]}  fxe5 {[%clk 0:00:34]} 27. Rf1 {[%clk 0:00:05]}  Nb5 {[%clk 0:00:22]} 28. Rc5 {[%clk 0:00:03]}  Rd4 {[%clk 0:00:19]} 29. Qc1 {[%clk 0:00:02]}  Qd6 {[%clk 0:00:08]} 30. Rd5 {[%clk 0:00:02]}  Rxd5 {[%clk 0:00:07]} 31. exd5 {[%clk 0:00:02]}  Qxd5 {[%clk 0:00:08]} 32. Re1 {[%clk 0:00:02]}  Nd4 {[%clk 0:00:06]} 33. Qd2 {[%clk 0:00:02]}  Qb5 {[%clk 0:00:01]} 34. Qe3 {[%clk 0:00:01]} 1-0


[Site "https://www.chess.com"]

[Event "Titled Tuesday Blitz November 08 Early 2022"]
[White "Schrik, Rachid"]
[Black "Marin Ramirez, Gerardo"]
[WhiteFideId "1009818"]
[BlackFideId "3901068"]
[WhiteElo "2098"]
[BlackElo "2041"]
[Result "1-0"]
[Round "04"]
[TimeControl "180+1"]
[Date "2022.11.09"]
[WhiteClock "0:00:20"]
[BlackClock "0:00:03"]

1. d4 {[%clk 0:03:00]}  d5 {[%clk 0:02:59]} 2. c4 {[%clk 0:03:00]}  c6 {[%clk 0:02:59]} 3. cxd5 {[%clk 0:03:00]}  Nf6 {[%clk 0:03:00]} 4. dxc6 {[%clk 0:03:00]}  Nxc6 {[%clk 0:03:01]} 5. Nf3 {[%clk 0:02:56]}  Bf5 {[%clk 0:03:00]} 6. e3 {[%clk 0:02:52]}  e6 {[%clk 0:03:00]} 7. Nc3 {[%clk 0:02:51]}  Bb4 {[%clk 0:02:59]} 8. Bd3 {[%clk 0:02:50]}  Qa5 {[%clk 0:02:57]} 9. Bxf5 {[%clk 0:02:43]}  Qxf5 {[%clk 0:02:45]} 10. O-O {[%clk 0:02:34]}  O-O {[%clk 0:02:44]} 11. a3 {[%clk 0:02:26]}  Ba5 {[%clk 0:02:42]} 12. b4 {[%clk 0:02:25]}  Bc7 {[%clk 0:02:39]} 13. Bb2 {[%clk 0:02:24]}  Rad8 {[%clk 0:02:37]} 14. Qe2 {[%clk 0:02:13]}  Qh5 {[%clk 0:02:34]} 15. Rfe1 {[%clk 0:02:04]}  Qh6 {[%clk 0:02:08]} 16. Rac1 {[%clk 0:01:59]}  Bb8 {[%clk 0:02:07]} 17. Na4 {[%clk 0:01:47]}  Ne7 {[%clk 0:02:01]} 18. Nc5 {[%clk 0:01:42]}  Rd5 {[%clk 0:01:21]} 19. Ne5 {[%clk 0:01:31]}  b6 {[%clk 0:01:10]} 20. Na6 {[%clk 0:01:20]}  Bxe5 {[%clk 0:01:09]} 21. dxe5 {[%clk 0:01:16]}  Ne4 {[%clk 0:01:09]} 22. Bd4 {[%clk 0:00:54]}  Nf5 {[%clk 0:00:56]} 23. f3 {[%clk 0:00:51]}  Nxd4 {[%clk 0:00:48]} 24. exd4 {[%clk 0:00:50]}  Ng5 {[%clk 0:00:42]} 25. f4 {[%clk 0:00:48]}  Rxd4 {[%clk 0:00:32]} 26. fxg5 {[%clk 0:00:47]}  Qxg5 {[%clk 0:00:33]} 27. Rcd1 {[%clk 0:00:47]}  Rg4 {[%clk 0:00:30]} 28. Rd2 {[%clk 0:00:44]}  h5 {[%clk 0:00:30]} 29. h3 {[%clk 0:00:44]}  Rg3 {[%clk 0:00:29]} 30. Kh2 {[%clk 0:00:44]}  Rxa3 {[%clk 0:00:27]} 31. b5 {[%clk 0:00:42]}  Rc8 {[%clk 0:00:19]} 32. Red1 {[%clk 0:00:42]}  Rcc3 {[%clk 0:00:15]} 33. Rd8+ {[%clk 0:00:39]}  Kh7 {[%clk 0:00:14]} 34. R8d3 {[%clk 0:00:37]}  Qf4+ {[%clk 0:00:12]} 35. Kh1 {[%clk 0:00:34]}  Rxd3 {[%clk 0:00:10]} 36. Rxd3 {[%clk 0:00:35]}  Ra1+ {[%clk 0:00:10]} 37. Rd1 {[%clk 0:00:34]}  Rxd1+ {[%clk 0:00:10]} 38. Qxd1 {[%clk 0:00:34]}  Qxe5 {[%clk 0:00:10]} 39. Qb1+ {[%clk 0:00:32]}  g6 {[%clk 0:00:10]} 40. Qf1 {[%clk 0:00:31]}  f5 {[%clk 0:00:09]} 41. Nb4 {[%clk 0:00:32]}  f4 {[%clk 0:00:05]} 42. Nc6 {[%clk 0:00:30]}  Qe3 {[%clk 0:00:06]} 43. Nxa7 {[%clk 0:00:28]}  g5 {[%clk 0:00:06]} 44. Nc8 {[%clk 0:00:28]}  g4 {[%clk 0:00:05]} 45. Nd6 {[%clk 0:00:25]}  g3 {[%clk 0:00:04]} 46. Nf7 {[%clk 0:00:23]}  Kg6 {[%clk 0:00:03]} 47. Nd6 {[%clk 0:00:20]} 1-0


[Site "https://www.chess.com"]

[Event "Titled Tuesday Blitz November 08 Early 2022"]
[White "Seo, Jung Min"]
[Black "Streltsov, Alexey"]
[WhiteFideId "1734687"]
[BlackFideId "24104434"]
[WhiteElo "2814"]
[BlackElo "2560"]
[Result "0-1"]
[Round "04"]
[TimeControl "180+1"]
[Date "2022.11.09"]
[WhiteClock "0:01:13"]
[BlackClock "0:01:11"]

1. e4 {[%clk 0:03:00]}  c6 {[%clk 0:03:00]} 2. d4 {[%clk 0:03:00]}  d5 {[%clk 0:03:00]} 3. e5 {[%clk 0:03:00]}  Bf5 {[%clk 0:03:01]} 4. Nf3 {[%clk 0:03:00]}  e6 {[%clk 0:03:01]} 5. Be2 {[%clk 0:03:00]}  c5 {[%clk 0:03:01]} 6. Be3 {[%clk 0:02:59]}  Qb6 {[%clk 0:03:02]} 7. Nc3 {[%clk 0:02:58]}  c4 {[%clk 0:03:01]} 8. Rb1 {[%clk 0:02:51]}  Bb4 {[%clk 0:03:01]} 9. Bd2 {[%clk 0:02:51]}  Qd8 {[%clk 0:02:46]} 10. a3 {[%clk 0:02:50]}  Bxc3 {[%clk 0:02:42]} 11. Bxc3 {[%clk 0:02:49]}  Nc6 {[%clk 0:02:38]} 12. O-O {[%clk 0:02:46]}  h6 {[%clk 0:02:37]} 13. Qd2 {[%clk 0:02:38]}  Nge7 {[%clk 0:02:37]} 14. a4 {[%clk 0:02:37]}  a6 {[%clk 0:02:20]} 15. b3 {[%clk 0:02:29]}  b5 {[%clk 0:02:18]} 16. bxc4 {[%clk 0:02:22]}  bxc4 {[%clk 0:02:16]} 17. Rb7 {[%clk 0:02:21]}  Rb8 {[%clk 0:01:54]} 18. Rfb1 {[%clk 0:02:18]}  Rxb7 {[%clk 0:01:54]} 19. Rxb7 {[%clk 0:02:17]}  Qa8 {[%clk 0:01:55]} 20. Rb6 {[%clk 0:02:16]}  a5 {[%clk 0:01:51]} 21. Rb5 {[%clk 0:02:12]}  O-O {[%clk 0:01:49]} 22. Bxa5 {[%clk 0:02:08]}  Bxc2 {[%clk 0:01:50]} 23. Qxc2 {[%clk 0:02:04]}  Nxa5 {[%clk 0:01:50]} 24. Qc3 {[%clk 0:02:02]}  Nec6 {[%clk 0:01:46]} 25. h4 {[%clk 0:01:55]}  Rb8 {[%clk 0:01:46]} 26. Qb2 {[%clk 0:01:54]}  Nb3 {[%clk 0:01:37]} 27. Rxb8+ {[%clk 0:01:53]}  Qxb8 {[%clk 0:01:38]} 28. Bd1 {[%clk 0:01:48]}  Qb6 {[%clk 0:01:30]} 29. Bxb3 {[%clk 0:01:47]}  Qxb3 {[%clk 0:01:26]} 30. Qxb3 {[%clk 0:01:47]}  cxb3 {[%clk 0:01:27]} 31. Kf1 {[%clk 0:01:43]}  b2 {[%clk 0:01:26]} 32. Nd2 {[%clk 0:01:43]}  Nxd4 {[%clk 0:01:26]} 33. a5 {[%clk 0:01:43]}  Kf8 {[%clk 0:01:22]} 34. a6 {[%clk 0:01:42]}  Nb5 {[%clk 0:01:22]} 35. Ke2 {[%clk 0:01:40]}  Ke7 {[%clk 0:01:22]} 36. Kd3 {[%clk 0:01:41]}  Kd7 {[%clk 0:01:23]} 37. Kc2 {[%clk 0:01:41]}  Kc6 {[%clk 0:01:24]} 38. Kxb2 {[%clk 0:01:32]}  Kb6 {[%clk 0:01:24]} 39. f4 {[%clk 0:01:32]}  Kxa6 {[%clk 0:01:24]} 40. g4 {[%clk 0:01:32]}  Nd4 {[%clk 0:01:17]} 41. h5 {[%clk 0:01:31]}  Kb5 {[%clk 0:01:14]} 42. Nb1 {[%clk 0:01:13]}  Kc4 {[%clk 0:01:11]} 0-1


[Site "https://www.chess.com"]

[Event "Titled Tuesday Blitz November 08 Early 2022"]
[White "Sharifov, Mekhriddin"]
[Black "Kostiukov, Alexandr"]
[WhiteFideId "14701545"]
[BlackFideId "14108100"]
[WhiteElo "2109"]
[BlackElo "2202"]
[Result "1/2-1/2"]
[Round "04"]
[TimeControl "180+1"]
[Date "2022.11.09"]
[WhiteClock "0:00:04"]
[BlackClock "0:00:04"]

1. e4 {[%clk 0:02:56]}  c5 {[%clk 0:02:57]} 2. Nf3 {[%clk 0:02:56]}  g6 {[%clk 0:02:55]} 3. d4 {[%clk 0:02:55]}  cxd4 {[%clk 0:02:53]} 4. Nxd4 {[%clk 0:02:56]}  Bg7 {[%clk 0:02:51]} 5. c4 {[%clk 0:02:56]}  Nc6 {[%clk 0:02:48]} 6. Be3 {[%clk 0:02:56]}  Nf6 {[%clk 0:02:41]} 7. Nc3 {[%clk 0:02:57]}  Nxd4 {[%clk 0:02:41]} 8. Bxd4 {[%clk 0:02:57]}  Qa5 {[%clk 0:02:41]} 9. Be2 {[%clk 0:02:54]}  O-O {[%clk 0:02:41]} 10. O-O {[%clk 0:02:54]}  d6 {[%clk 0:02:41]} 11. a3 {[%clk 0:02:51]}  Be6 {[%clk 0:02:41]} 12. b4 {[%clk 0:02:46]}  Qc7 {[%clk 0:02:32]} 13. Rc1 {[%clk 0:02:44]}  a6 {[%clk 0:02:23]} 14. Qd3 {[%clk 0:01:41]}  Rfc8 {[%clk 0:02:12]} 15. Nd5 {[%clk 0:01:28]}  Bxd5 {[%clk 0:02:12]} 16. exd5 {[%clk 0:01:28]}  Nd7 {[%clk 0:02:08]} 17. Bg4 {[%clk 0:01:19]}  Bxd4 {[%clk 0:01:37]} 18. Qxd4 {[%clk 0:01:20]}  f5 {[%clk 0:01:34]} 19. Be2 {[%clk 0:01:19]}  Qb6 {[%clk 0:01:29]} 20. c5 {[%clk 0:00:45]}  dxc5 {[%clk 0:01:25]} 21. bxc5 {[%clk 0:00:45]}  Rxc5 {[%clk 0:01:18]} 22. Bc4 {[%clk 0:00:43]}  Qf6 {[%clk 0:01:11]} 23. d6+ {[%clk 0:00:41]}  Kg7 {[%clk 0:01:03]} 24. Qxf6+ {[%clk 0:00:27]}  Kxf6 {[%clk 0:00:53]} 25. dxe7 {[%clk 0:00:25]}  Kxe7 {[%clk 0:00:40]} 26. Rfe1+ {[%clk 0:00:24]}  Re5 {[%clk 0:00:39]} 27. Rxe5+ {[%clk 0:00:19]}  Nxe5 {[%clk 0:00:38]} 28. Bd5 {[%clk 0:00:20]}  Rb8 {[%clk 0:00:35]} 29. f4 {[%clk 0:00:20]}  Nd3 {[%clk 0:00:31]} 30. Rc4 {[%clk 0:00:18]}  Kd6 {[%clk 0:00:28]} 31. Bf3 {[%clk 0:00:18]}  Nc5 {[%clk 0:00:25]} 32. Rd4+ {[%clk 0:00:19]}  Ke7 {[%clk 0:00:24]} 33. Rd5 {[%clk 0:00:18]}  Ne6 {[%clk 0:00:23]} 34. Re5 {[%clk 0:00:18]}  Kf6 {[%clk 0:00:23]} 35. g3 {[%clk 0:00:18]}  b5 {[%clk 0:00:20]} 36. Rd5 {[%clk 0:00:18]}  Rd8 {[%clk 0:00:20]} 37. Re5 {[%clk 0:00:13]}  Rd3 {[%clk 0:00:20]} 38. Kg2 {[%clk 0:00:10]}  Nd4 {[%clk 0:00:19]} 39. Bb7 {[%clk 0:00:08]}  Rd2+ {[%clk 0:00:19]} 40. Kh3 {[%clk 0:00:08]}  h6 {[%clk 0:00:16]} 41. Rd5 {[%clk 0:00:07]}  g5 {[%clk 0:00:12]} 42. fxg5+ {[%clk 0:00:05]}  hxg5 {[%clk 0:00:12]} 43. g4 {[%clk 0:00:05]}  f4 {[%clk 0:00:11]} 44. Bxa6 {[%clk 0:00:02]}  Ke6 {[%clk 0:00:10]} 45. Bb7 {[%clk 0:00:02]}  Nf3 {[%clk 0:00:08]} 46. Rxd2 {[%clk 0:00:03]}  Nxd2 {[%clk 0:00:08]} 47. Bc6 {[%clk 0:00:03]}  Nc4 {[%clk 0:00:08]} 48. Bxb5 {[%clk 0:00:04]}  Nxa3 {[%clk 0:00:07]} 49. Bd3 {[%clk 0:00:05]}  Ke5 {[%clk 0:00:07]} 50. Kg2 {[%clk 0:00:05]}  Kd4 {[%clk 0:00:06]} 51. Bf5 {[%clk 0:00:05]}  Nc4 {[%clk 0:00:06]} 52. Kf3 {[%clk 0:00:06]}  Ne3 {[%clk 0:00:06]} 53. Be6 {[%clk 0:00:06]}  Ke5 {[%clk 0:00:05]} 54. Bc8 {[%clk 0:00:06]}  Nd5 {[%clk 0:00:05]} 55. h3 {[%clk 0:00:06]}  Nf6 {[%clk 0:00:04]} 56. Kf2 {[%clk 0:00:05]}  Ne4+ {[%clk 0:00:04]} 57. Kf3 {[%clk 0:00:04]}  Nd2+ {[%clk 0:00:04]} 58. Ke2 {[%clk 0:00:05]}  Ne4 {[%clk 0:00:04]} 59. Kf3 {[%clk 0:00:05]}  Nf6 {[%clk 0:00:04]} 60. Bb7 {[%clk 0:00:05]}  Kd4 {[%clk 0:00:04]} 61. Bc8 {[%clk 0:00:04]}  Ke5 {[%clk 0:00:04]} 1/2-1/2


[Site "https://www.chess.com"]

[Event "Titled Tuesday Blitz November 08 Early 2022"]
[White "Shimanov, Aleksandr"]
[Black "Horobetz, Graham"]
[WhiteFideId "4198603"]
[BlackFideId "2047322"]
[WhiteElo "2865"]
[BlackElo "2599"]
[Result "1-0"]
[Round "04"]
[TimeControl "180+1"]
[Date "2022.11.09"]
[WhiteClock "0:00:18"]
[BlackClock "0:00:03"]

1. e4 {[%clk 0:03:00]}  c5 {[%clk 0:02:55]} 2. Nf3 {[%clk 0:03:00]}  d6 {[%clk 0:02:55]} 3. Nc3 {[%clk 0:02:58]}  Nf6 {[%clk 0:02:55]} 4. e5 {[%clk 0:02:57]}  dxe5 {[%clk 0:02:55]} 5. Nxe5 {[%clk 0:02:58]}  Nbd7 {[%clk 0:02:55]} 6. Nc4 {[%clk 0:02:57]}  g6 {[%clk 0:02:41]} 7. g3 {[%clk 0:02:55]}  Bg7 {[%clk 0:02:41]} 8. Bg2 {[%clk 0:02:55]}  O-O {[%clk 0:02:41]} 9. d3 {[%clk 0:02:52]}  Nb6 {[%clk 0:02:40]} 10. O-O {[%clk 0:02:51]}  Nfd5 {[%clk 0:02:29]} 11. Nxd5 {[%clk 0:02:27]}  Nxd5 {[%clk 0:02:29]} 12. a4 {[%clk 0:02:28]}  Nb6 {[%clk 0:02:15]} 13. a5 {[%clk 0:02:25]}  Nxc4 {[%clk 0:02:12]} 14. dxc4 {[%clk 0:02:26]}  Qc7 {[%clk 0:02:12]} 15. Bf4 {[%clk 0:02:21]}  e5 {[%clk 0:02:05]} 16. Be3 {[%clk 0:02:21]}  Be6 {[%clk 0:02:01]} 17. Qe2 {[%clk 0:02:16]}  Rad8 {[%clk 0:01:58]} 18. b3 {[%clk 0:01:55]}  f5 {[%clk 0:01:34]} 19. a6 {[%clk 0:01:33]}  b6 {[%clk 0:01:23]} 20. Rfe1 {[%clk 0:01:31]}  h6 {[%clk 0:01:15]} 21. Rad1 {[%clk 0:01:27]}  e4 {[%clk 0:00:59]} 22. f3 {[%clk 0:01:23]}  Bd4 {[%clk 0:00:33]} 23. Bxd4 {[%clk 0:00:54]}  cxd4 {[%clk 0:00:23]} 24. fxe4 {[%clk 0:00:54]}  f4 {[%clk 0:00:23]} 25. e5 {[%clk 0:00:55]}  Qf7 {[%clk 0:00:17]} 26. Rf1 {[%clk 0:00:52]}  g5 {[%clk 0:00:17]} 27. gxf4 {[%clk 0:00:50]}  gxf4 {[%clk 0:00:18]} 28. Kh1 {[%clk 0:00:50]}  Kh8 {[%clk 0:00:18]} 29. Rf2 {[%clk 0:00:47]}  Qg7 {[%clk 0:00:13]} 30. Rdf1 {[%clk 0:00:46]}  Rde8 {[%clk 0:00:13]} 31. Rxf4 {[%clk 0:00:43]}  Rg8 {[%clk 0:00:11]} 32. Rf6 {[%clk 0:00:29]}  Qg5 {[%clk 0:00:05]} 33. Qf2 {[%clk 0:00:20]}  Rg7 {[%clk 0:00:03]} 34. h4 {[%clk 0:00:18]} 1-0


[Site "https://www.chess.com"]

[Event "Titled Tuesday Blitz November 08 Early 2022"]
[White "Shuvalov, Evgenij"]
[Black "Saucey, Michel"]
[WhiteFideId "4187237"]
[BlackFideId "601845"]
[WhiteElo "2049"]
[BlackElo "2253"]
[Result "1-0"]
[Round "04"]
[TimeControl "180+1"]
[Date "2022.11.09"]
[WhiteClock "0:00:30"]
[BlackClock "0:00:02"]

1. d4 {[%clk 0:03:00]}  d5 {[%clk 0:02:58]} 2. c4 {[%clk 0:03:00]}  e6 {[%clk 0:02:59]} 3. cxd5 {[%clk 0:03:00]}  exd5 {[%clk 0:02:58]} 4. Nc3 {[%clk 0:03:00]}  Nf6 {[%clk 0:02:57]} 5. Bg5 {[%clk 0:02:59]}  c6 {[%clk 0:02:57]} 6. Nf3 {[%clk 0:02:58]}  h6 {[%clk 0:02:54]} 7. Bh4 {[%clk 0:02:57]}  Be7 {[%clk 0:02:54]} 8. Qc2 {[%clk 0:02:56]}  O-O {[%clk 0:02:52]} 9. e3 {[%clk 0:02:56]}  Re8 {[%clk 0:02:52]} 10. Bd3 {[%clk 0:02:56]}  Ne4 {[%clk 0:02:48]} 11. Bg3 {[%clk 0:02:52]}  Bf5 {[%clk 0:02:22]} 12. O-O {[%clk 0:02:36]}  Bf6 {[%clk 0:02:17]} 13. Be5 {[%clk 0:02:28]}  Bxe5 {[%clk 0:02:09]} 14. Nxe5 {[%clk 0:02:26]}  Nd7 {[%clk 0:01:41]} 15. Nxd7 {[%clk 0:02:13]}  Qxd7 {[%clk 0:01:41]} 16. Rab1 {[%clk 0:01:52]}  a5 {[%clk 0:01:38]} 17. a3 {[%clk 0:01:52]}  Nd6 {[%clk 0:01:36]} 18. Na4 {[%clk 0:01:49]}  Bxd3 {[%clk 0:01:35]} 19. Qxd3 {[%clk 0:01:50]}  Qe7 {[%clk 0:01:25]} 20. h3 {[%clk 0:01:45]}  Nc4 {[%clk 0:01:08]} 21. Rfe1 {[%clk 0:01:37]}  Qe4 {[%clk 0:01:04]} 22. Qxe4 {[%clk 0:01:28]}  Rxe4 {[%clk 0:01:02]} 23. Nc5 {[%clk 0:01:28]}  Re7 {[%clk 0:01:01]} 24. a4 {[%clk 0:01:20]}  b6 {[%clk 0:00:55]} 25. Nd3 {[%clk 0:01:19]}  Rb8 {[%clk 0:00:33]} 26. b4 {[%clk 0:01:16]}  axb4 {[%clk 0:00:30]} 27. Rxb4 {[%clk 0:01:16]}  Ra8 {[%clk 0:00:30]} 28. Nb2 {[%clk 0:01:02]}  Nxb2 {[%clk 0:00:17]} 29. Rxb2 {[%clk 0:01:03]}  Ra6 {[%clk 0:00:13]} 30. Rc1 {[%clk 0:01:00]}  Rc7 {[%clk 0:00:12]} 31. Kf1 {[%clk 0:00:56]}  Kf8 {[%clk 0:00:11]} 32. Ke2 {[%clk 0:00:48]}  Ke7 {[%clk 0:00:10]} 33. Rcb1 {[%clk 0:00:44]}  Rb7 {[%clk 0:00:09]} 34. Rb4 {[%clk 0:00:44]}  Kd6 {[%clk 0:00:09]} 35. Kf3 {[%clk 0:00:43]}  g6 {[%clk 0:00:08]} 36. h4 {[%clk 0:00:43]}  Kc7 {[%clk 0:00:04]} 37. Kf4 {[%clk 0:00:40]}  Kd6 {[%clk 0:00:05]} 38. h5 {[%clk 0:00:37]}  gxh5 {[%clk 0:00:04]} 39. Kf5 {[%clk 0:00:37]}  c5 {[%clk 0:00:02]} 40. dxc5+ {[%clk 0:00:34]}  Kxc5 {[%clk 0:00:02]} 41. Rh4 {[%clk 0:00:30]} 1-0


[Site "https://www.chess.com"]

[Event "Titled Tuesday Blitz November 08 Early 2022"]
[White "Simonovic, Miroslav"]
[Black "Goncalves, Davi Sulzbacher"]
[WhiteFideId "919152"]
[BlackFideId "2154510"]
[WhiteElo "2043"]
[BlackElo "2182"]
[Result "0-1"]
[Round "04"]
[TimeControl "180+1"]
[Date "2022.11.09"]
[WhiteClock "0:00:04"]
[BlackClock "0:01:57"]

1. d4 {[%clk 0:03:00]}  g6 {[%clk 0:03:00]} 2. h4 {[%clk 0:02:59]}  Bg7 {[%clk 0:03:01]} 3. h5 {[%clk 0:03:00]}  Nf6 {[%clk 0:03:01]} 4. h6 {[%clk 0:03:00]}  Bf8 {[%clk 0:03:02]} 5. c4 {[%clk 0:02:59]}  e6 {[%clk 0:03:01]} 6. Nc3 {[%clk 0:02:57]}  Be7 {[%clk 0:03:02]} 7. e4 {[%clk 0:02:56]}  d6 {[%clk 0:03:02]} 8. g4 {[%clk 0:02:55]}  O-O {[%clk 0:03:02]} 9. g5 {[%clk 0:02:55]}  Ne8 {[%clk 0:03:02]} 10. f4 {[%clk 0:02:54]}  e5 {[%clk 0:03:00]} 11. Nd5 {[%clk 0:02:39]}  Nc6 {[%clk 0:02:56]} 12. Nxe7+ {[%clk 0:02:39]}  Qxe7 {[%clk 0:02:55]} 13. d5 {[%clk 0:02:31]}  exf4 {[%clk 0:02:51]} 14. Bd3 {[%clk 0:01:47]}  Ne5 {[%clk 0:02:38]} 15. Bxf4 {[%clk 0:01:35]}  Bg4 {[%clk 0:02:37]} 16. Qc2 {[%clk 0:01:17]}  f5 {[%clk 0:02:35]} 17. Rh4 {[%clk 0:00:24]}  fxe4 {[%clk 0:02:28]} 18. Bxe4 {[%clk 0:00:22]}  Rxf4 {[%clk 0:02:27]} 19. Rxg4 {[%clk 0:00:10]}  Rxg4 {[%clk 0:02:26]} 20. O-O-O {[%clk 0:00:10]}  Qxg5+ {[%clk 0:02:25]} 21. Kb1 {[%clk 0:00:10]}  Rxg1 {[%clk 0:02:25]} 22. a3 {[%clk 0:00:05]}  Nf6 {[%clk 0:02:20]} 23. Ka2 {[%clk 0:00:03]}  Rxd1 {[%clk 0:02:19]} 24. Qxd1 {[%clk 0:00:04]}  Nxe4 {[%clk 0:02:19]} 25. Qa4 {[%clk 0:00:05]}  Qxh6 {[%clk 0:02:06]} 26. Qb5 {[%clk 0:00:05]}  Nc5 {[%clk 0:02:03]} 27. b4 {[%clk 0:00:04]}  Qd2+ {[%clk 0:02:01]} 28. Ka1 {[%clk 0:00:04]}  Qc1+ {[%clk 0:01:56]} 29. Ka2 {[%clk 0:00:04]}  Qc2+ {[%clk 0:01:57]} 0-1


[Site "https://www.chess.com"]